{"text_format":"1","workbook":"xlsx","n_sheets":5,"sheets":["Forutsetninger til notemalen","Registrering av faste opplysn.","Skattesatser","Prinsipper","Notemal"],"not_rendered":{"charts":0,"images":0,"macros":1,"external_links":0,"defined_names":1,"comments":1,"pivot_tables":0},"unopened":[],"bounds":{"document_bytes":16777216,"sheet_cells":100000,"rows_first":2000,"rows_last":500,"rows_between":2000,"halvings":0,"cell_chars":16384,"cell_head_chars":4096},"cells_cut":0,"cells_raw":0,"read":"whole","date_system":"1900"}

{"sheet":"Forutsetninger til notemalen","index":0,"n_rows":0,"n_cols":0,"rows_kept":0,"cut":false,"hidden":false,"merged":[[0,1,37,11]]}

{"sheet":"Registrering av faste opplysn.","index":1,"n_rows":7,"n_cols":2,"rows_kept":7,"cut":false,"hidden":false,"merged":[]}
["Registrering av årstall"]
[]
["På denne siden skal du legge inn årstall slik at malen automatisk vil oppdateres."]
[]
[]
["Regnskapsår:",2023]
["Foregående år:",{"$f":"+B6-1","v":2022}]

{"sheet":"Skattesatser","index":2,"n_rows":5,"n_cols":3,"rows_kept":5,"cut":false,"hidden":false,"merged":[]}
[]
["Betalbar skatt",{"$f":"+'Registrering av faste opplysn.'!B7","v":2022},0.22]
["Betalbar skatt",{"$f":"+'Registrering av faste opplysn.'!B6","v":2023},0.22]
["Utsatt skatt 01.01.",{"$f":"+'Registrering av faste opplysn.'!B6","v":2023},0.22]
["Utsatt skatt 31.12.",{"$f":"+'Registrering av faste opplysn.'!B6","v":2023},0.22]

{"sheet":"Prinsipper","index":3,"n_rows":46,"n_cols":1,"rows_kept":46,"cut":false,"hidden":false,"merged":[]}
["Regnskapsprinsipper "]
[]
["Årsregnskapet er satt opp i samsvar med regnskapsloven og god regnskapsskikk for små foretak. "]
[]
["Salgsinntekter "]
["Inntekter ved salg av varer og tjenester vurderes til virkelig verdi av vederlaget, netto etter fradrag for merverdiavgift, returer, rabatter og andre avslag. Inntektsføring ved salg av varer skjer på leveringstidspunktet. Tjenester inntektsføres etterhvert som de utføres. "]
[]
["Klassifisering av balanseposter "]
["Eiendeler bestemt til varig eie eller bruk er klassifisert som anleggsmidler. Eiendeler som er knyttet til varekretsløpet er klassifisert som omløpsmidler. Fordringer klassifiseres som omløpsmidler hvis de skal tilbakebetales i løpet av ett år. For gjeld er analoge kriterier lagt til grunn. Første års avdrag på langsiktige fordringer og langsiktig gjeld klassifiseres likevel ikke som omløpsmiddel og kortsiktig gjeld."]
[]
["Immaterielle eiendeler "]
["Utgifter til egen utvikling av immaterielle eiendeler kostnadsføres løpende."]
[" "]
["Varige driftsmidler "]
["Tomter avskrives ikke. Varige driftsmidler balanseføres og avskrives lineært over driftsmidlenes forventede levetid dersom de har antatt levetid over 3 år og har en kostpris som overstiger kr 15 000. Vedlikehold av driftsmidler kostnadsføres løpende. Påkostninger eller forbedringer tillegges driftsmidlets kostpris og avskrives i takt med driftsmidlet. Skillet mellom vedlikehold og påkostning/forbedring regnes i forhold til driftsmidlets stand ved kjøp av driftsmidlet."]
["Utgifter til leie av driftsmidler kostnadsføres. Forskuddsbetalinger balanseføres som forskuddsbetalt kostnad, og fordeles over leieperioden."]
[]
["Investeringer i andre selskaper "]
["Kostmetoden brukes som prinsipp for investeringer i andre selskaper. Kostprisen økes når midler tilføres ved kapitalutvidelse, eller når det gis konsernbidrag til datterselskap. Mottatte utdelinger resultatføres i utgangspunktet som inntekt. Utdelinger som overstiger andel av opptjent egenkapital etter kjøpet føres som reduksjon av anskaffelseskost. Utbytte/konsernbidrag fra datterselskap regnskapsføres det samme året som datterselskapet avsetter beløpet. Utbytte fra andre selskaper regnskapsføres som finansinntekt når utbyttet er vedtatt."]
["Balanseført beløp skrives ned til antatt virkelig verdi når den er lavere."]
[]
["Nedskrivning av anleggsmidler"]
["Ved indikasjon på at balanseført verdi av et anleggsmiddel er høyere enn virkelig verdi, foretas det test for verdifall. Testen foretas for det laveste nivå av anleggsmidler som har selvstendige kontantstrømmer. Hvis balanseført verdi er høyere enn både salgsverdi og bruksverdi (nåverdi ved fortsatt bruk/eie), foretas det nedskrivning til det høyeste av salgsverdi og bruksverdi."]
["Tidligere nedskrivninger, med unntak for nedskrivning av goodwill, reverseres hvis forutsetningene for nedskrivningen ikke lenger er til stede."]
[]
["Kortsiktige investeringer i børsnoterte aksjer"]
["For kortsiktige investeringer i børsnoterte aksjer brukes markedsverdiprinsippet. Verdien i balansen tilsvarer markedsverdien av investeringene pr. 31.12. Mottatte utdelinger, og realiserte og urealiserte gevinster/tap, resultatføres som finansposter."]
[]
["Varebeholdninger "]
["Lager av innkjøpte varer verdsettes til det laveste av anskaffelseskost etter FIFO-prinsippet, og netto salgsverdi. Egentilvirkede ferdigvarer og varer under tilvirkning vurderes til variabel tilvirkningskost. "]
[]
["Fordringer"]
["Kundefordringer og andre fordringer er oppført i balansen til pålydende etter fradrag for avsetning til "]
["forventet tap. Avsetning for tap gjøres på grunnlag av individuelle vurderinger av de enkelte fordringene. "]
["I tillegg gjøres det for øvrige kundefordringer en uspesifisert avsetning for å dekke antatt tap."]
[]
["Pensjoner"]
["Forpliktelser knyttet til pensjoner over drift (direkte pensjoner) balanseføres. Pensjonsforpliktelser knyttet til AFP-ordning for selskapets ansatte balanseføres ikke. Forpliktelser eller pensjonsmidler knyttet til kollektiv forsikret pensjonsordning balanseføres ikke.  "]
[]
["Skatt "]
["Skattekostnaden i resultatregnskapet omfatter både periodens betalbare skatt og endring i utsatt skatt. Utsatt skatt beregnes med aktuell skattesats på grunnlag av de midlertidige forskjeller som eksisterer mellom regnskapsmessige og skattemessige verdier, samt eventuelt ligningsmessig underskudd til fremføring ved utgangen av regnskapsåret. Skatteøkende og skattereduserende midlertidige forskjeller som reverserer eller kan reversere i samme periode er utlignet. "]
["Alt. 1: "]
["Oppføring av utsatt skattefordel på netto skattereduserende forskjeller som ikke er utlignet og underskudd til fremføring, er begrunnet med antatt fremtidig inntjening. Utsatt skattefordel som kan balanseføres og utsatt skatt er oppført netto i balansen."]
["Alt. 2: "]
["Netto utsatt skattefordel balanseføres ikke, i samsvar med unntaksreglene for små foretak."]
["Skatt på avgitt konsernbidrag som er ført som økt kostpris på aksjer i andre selskaper, og skatt på mottatt konsernbidrag som er ført direkte mot egenkapitalen, er ført direkte mot skatt i balansen (føringen skjer mot betalbar skatt hvis konsernbidraget har hatt virkning på betalbar skatt og mot utsatt skatt hvis konsernbidraget har hatt virkning på utsatt skatt)."]

{"sheet":"Notemal","index":4,"n_rows":219,"n_cols":8,"rows_kept":219,"cut":false,"hidden":false,"merged":[[29,0,29,6],[32,0,32,6],[35,0,35,6],[36,0,36,6],[37,0,37,6],[155,2,155,3],[147,4,147,5],[155,4,155,5],[71,0,71,6]]}
[]
["Note 1 Lønnskostnader, antall ansatte, godtgjørelser, lån til ansatte m.v."]
[]
["Lønnskostnader",null,null,null,{"$f":"+'Registrering av faste opplysn.'!B6","v":2023},{"$f":"+E4-1","v":2022}]
[]
["Lønninger",null,null,null,0,0]
["Arbeidsgiveravgift",null,null,null,0,0]
["Pensjonskostnader",null,null,null,0,0]
["Andre lønnsrelaterte ytelser",null,null,null,0,0]
["Sum",null,null,null,{"$f":"SUM(E6:E9)","v":0},{"$f":"SUM(F6:F9)","v":0}]
[]
[]
["Sysselsatte årsverk",null,null,null,0,0]
[]
[]
["Alt 1:"]
[null,null,null,"Daglig leder","Styrets leder","Andre nærstående"]
[]
["Lån"]
["Sikkerhetsstillelse"]
[]
["Lån til daglig leder er gitt på følgende betingelser:"]
[]
["Alt. 2:"]
["Det er ikke gitt lån/sikkerhetsstillelse til daglig leder, styrets leder eller andre nærstående parter. "]
[]
[]
["Note 2 Pensjoner"]
[]
["Selskapet har en pensjonsordning ovenfor xx ansatte som finansieres over selskapets drift. Pensjonsforpliktelsen er beregnet ut fra xx % diskonteringsrente og xx årlig regulering av pensjonen. Nåverdien av forpliktelsen ved utgangen av året, inkludert arbeidsgiveravgift, er beregnet til kr xx, og er ført som pensjonsforpliktelse i balansen."]
[]
["Alt 1) "]
["Selskapet har en kollektiv pensjonsforsikring som omfatter alle xx ansatte. Ordningen gir rett til definerte fremtidige ytelser. Disse er i hovedsak avhengig av antall opptjeningsår, lønnsnivå ved oppnådd pensjonsalder og størrelsen på ytelsene fra folketrygden. Forpliktelsene knyttet til ordningen er dekket gjennom et forsikringsselskap. Årets pensjonspremie, korrigert med eventuelle innbetalinger til eller trekk på premiefondet, er regnskapsført som pensjonskostnad. Premiefondet pr. 31.12. er kr xx."]
[]
["Alt 2) "]
["Selskapet har en kollektiv pensjonsforsikring som omfatter alle xx ansatte. Ordningen er en innskuddsordning. Årets pensjonspremie, korrigert med eventuelle innbetalinger til eller trekk på innskuddsfondet, er regnskapsført som pensjonskostnad. Innskuddsfondet pr. 31.12. er kr xx."]
["Selskapets pensjonsordninger tilfredsstiller kravene i lov om obligatorisk tjenestepensjon. "]
["Selskapets ansatte har i tillegg en tariffestet avtalefestet førtidspensjonsordning (usikret ordning). Selskapets ansatte kan velge å gå av med AFP fra fylte 62 år. Forpliktelsen i følge ordningen er ikke regnskapsført som gjeld. Ordningen omfatter xx ansatte. "]
[]
["Årets netto pensjonskostnad ",null,null,null,{"$f":"+'Registrering av faste opplysn.'!B6","v":2023},{"$f":"+'Registrering av faste opplysn.'!B7","v":2022}]
[]
["Utbetalte pensjoner fra selskapet",null,null,null,0,0]
["Endring balanseført direkte pensjonsforpliktelse",null,null,null,0,0]
["Årets premie til AFP-ordningen",null,null,null,0,0]
["Årets pensjonspremie til kollektiv ordning",null,null,null,0,0]
["Arbeidsgiveravgift",null,null,null,0,0]
["Årets netto pensjonskostnad",null,null,null,{"$f":"SUM(E42:E46)","v":0},{"$f":"SUM(F42:F46)","v":0}]
[]
[]
["Note 3 Varige driftsmidler og immaterielle eiendeler"]
[]
[]
[null,null,"Bygninger og tomter","Maskiner","Driftsløsøre","Totalt"]
[]
[{"$f":"\"Anskaffelseskost 01.01.\" & 'Registrering av faste opplysn.'!B6","v":"Anskaffelseskost 01.01.2023"},null,0,0,0,{"$f":"SUM(C55:E55)","v":0}]
["Tilgang",null,0,0,0,{"$f":"SUM(C56:E56)","v":0}]
["Avgang",null,0,0,0,{"$f":"SUM(C57:E57)","v":0}]
[{"$f":"\"Anskaffelseskost 31.12.\" & 'Registrering av faste opplysn.'!B6","v":"Anskaffelseskost 31.12.2023"},null,{"$f":"SUM(C55:C57)","v":0},{"$f":"SUM(D55:D57)","v":0},{"$f":"SUM(E55:E57)","v":0},{"$f":"SUM(F55:F57)","v":0}]
["Herav balanseførte lånekostnader "]
["  på egentilvirkede anleggsmidler",null,0,0,0,{"$f":"SUM(C60:E60)","v":0}]
[]
["Oppskrevet tidligere",null,null,null,null,{"$f":"SUM(C62:E62)","v":0}]
[{"$f":"\"Akkumulerte avskrivninger 31.12.\" & 'Registrering av faste opplysn.'!B6","v":"Akkumulerte avskrivninger 31.12.2023"},null,0,0,0,{"$f":"SUM(C63:E63)","v":0}]
["Akkumulerte nedskrivninger 31.12",null,0,0,0,{"$f":"SUM(C64:E64)","v":0}]
["Reverserte nedskrivninger pr. 31.12",null,0,0,0,{"$f":"SUM(C65:E65)","v":0}]
[{"$f":"\"Balanseført verdi 31.12.\" & 'Registrering av faste opplysn.'!B6","v":"Balanseført verdi 31.12.2023"},null,{"$f":"C58+C62+SUM(C63:C65)","v":0},{"$f":"D58+D62+SUM(D63:D65)","v":0},{"$f":"E58+E62+SUM(E63:E65)","v":0},{"$f":"F58+F62+SUM(F63:F65)","v":0}]
[]
["Årets avskrivninger",null,0,0,0,{"$f":"SUM(C68:E68)","v":0}]
["Årets nedskrivninger",null,null,null,0,0,0,{"$f":"SUM(D69:G69)","v":0}]
["Årets reversering av nedskrivninger",null,null,null,0,0,0,{"$f":"SUM(D70:G70)","v":0}]
[]
["Totalt er det kostnadsført NOK xxx i utviklingsutgifter i regnskapsåret. Forventet samlet inntjening fra pågående utviklingsprosjekter motsvarer medgåtte samlede utgifter."]
[]
[]
["Note 4 Skatt"]
[]
["Beregning av utsatt skatt/utsatt skattefordel",null,null,null,{"$f":"+'Registrering av faste opplysn.'!B6","v":2023},{"$f":"+'Registrering av faste opplysn.'!B7","v":2022}]
[]
["Midlertidige forskjeller"]
[null,null,null,null,0,0]
[null,null,null,null,0,0]
[null,null,null,null,0,0]
[null,null,null,null,0,0]
[null,null,null,null,0,0]
[null,null,null,null,0,0]
["Netto midlertidige forskjeller",null,null,null,{"$f":"SUM(E80:E85)","v":0},{"$f":"SUM(F80:F85)","v":0}]
["Underskudd til fremføring",null,null,null,0,0]
[{"$f":"IF(E87<0,\"Grunnlag for utsatt skattefordel\",\"Grunnlag for utsatt skatt\")","v":"Grunnlag for utsatt skatt"},null,null,null,{"$f":"SUM(E86+E87)","v":0},{"$f":"SUM(F86+F87)","v":0}]
[]
[{"$f":"IF(E89<0,\"Utsatt skattefordel\",\"Utsatt skatt\")","v":"Utsatt skatt"},null,null,null,{"$f":"Skattesatser!C5*E88","v":0},{"$f":"Skattesatser!C4*F88","v":0}]
["Herav ikke balanseført utsatt skattefordel",null,null,null,0,0]
[{"$f":"IF(E89<0,\"Utsatt skattefordel i balansen\",\"Utsatt skatt i balansen\")","v":"Utsatt skatt i balansen"},null,null,null,{"$f":"SUM(E90+E91)","v":0},{"$f":"SUM(F90+F91)","v":0}]
[]
["Utsatt skattefordel som kunne vært balanseført",null,null,null,0,0]
[]
["Fordeling av skattekostnaden",null,null,null,{"$f":"+'Registrering av faste opplysn.'!B6","v":2023},{"$f":"+'Registrering av faste opplysn.'!B7","v":2022}]
[]
["Betalbar skatt",null,null,null,0,0]
["For mye, for lite avsatt i fjor",null,null,null,0,0]
["Sum betalbar skatt",null,null,null,{"$f":"SUM(E98:E99)","v":0},{"$f":"SUM(F98:F99)","v":0}]
["Endring i utsatt skatt/skattefordel med gammel sats",null,null,null,{"$f":"+((E92/Skattesatser!C5)*Skattesatser!C4)-((F92/Skattesatser!C4)*Skattesatser!C4)","v":0},0]
["Endring i utsatt skatt/skattefordel som følge av endret skattesats",null,null,null,{"$f":"+(E92/Skattesatser!C5)*(Skattesatser!C5-Skattesatser!C4)","v":0},0]
["Endring i utsatt skatt/skattefordel som følge av endret skattesats",null,null,null,0,0]
["Skattekostnad",null,null,null,{"$f":"SUM(E100:E103)","v":0},{"$f":"SUM(F100:F103)","v":0}]
[]
[]
["Note 5 Pantstillelser og garantier m.v."]
[]
["Gjeld som er sikret ved pant o.l.",null,null,null,{"$f":"+'Registrering av faste opplysn.'!B6","v":2023},{"$f":"+'Registrering av faste opplysn.'!B7","v":2022}]
[]
["Obligasjonslån",null,null,null,0]
["Gjeld til kredittinstitusjoner",null,null,null,0,0]
["Øvrig langsiktig gjeld ",null,null,null,0,0]
["Sum",null,null,null,{"$f":"SUM(E111:E113)","v":0},{"$f":"SUM(F111:F113)","v":0}]
[]
[]
["Balanseført verdi av eiendeler pantsatt for egen gjeld",null,null,null,{"$f":"+'Registrering av faste opplysn.'!B6","v":2023},{"$f":"+'Registrering av faste opplysn.'!B7","v":2022}]
[]
["Tomter, bygninger",null,null,null,0,0]
["Varer",null,null,null,0,0]
["Sum ",null,null,null,{"$f":"SUM(E119:E120)","v":0},{"$f":"SUM(F119:F120)","v":0}]
[]
["Note 6 Langsiktige investeringer i andre selskaper"]
[]
[]
[null,null,"Forretnings-","Eierandel/","Egenkapital","Resultat"]
[null,null,"kontor"," stemme-","siste år ","siste år"]
[null,null,null,"    andel",1,1]
["Datterselskap:"]
[]
[]
["Tilknyttet selskap:"]
[]
["Felles kontrollert virksomhet",null,0,0,0,0]
[]
[]
["Følgende interne transaksjoner har funnet sted "]
["med og mellom datterselskaper i regnskapsåret:"]
[null,null,null,null,null,"Intern-"]
[null,null,null,null,"Beløp","gevinst"]
[]
[null,null,null,null,0,0]
[]
[]
[]
["Mellomværende med selskap i samme konsern m.v.:"]
[]
[null,null,null,null,"          Fordringer"]
[null,null,null,null,{"$f":"+'Registrering av faste opplysn.'!B6","v":2023},{"$f":"+'Registrering av faste opplysn.'!B7","v":2022}]
[]
["Foretak i samme konsern",null,null,null,0,0]
["Tilknyttet selskap",null,null,null,0,0]
["Felleskontrollert virksomhet",null,null,null,0,0]
[]
[]
[null,null,"Annen langsiktig gjeld",null,"      Kortsiktig gjeld"]
[null,null,{"$f":"+'Registrering av faste opplysn.'!B6","v":2023},{"$f":"+'Registrering av faste opplysn.'!B7","v":2022},{"$f":"+'Registrering av faste opplysn.'!B6","v":2023},{"$f":"+'Registrering av faste opplysn.'!B7","v":2022}]
[]
["Foretak i samme konsern",null,0,0,0,0]
["Tilknyttet selskap",null,0,0,0,0]
["Felleskontrollert virksomhet",null,0,0,0,0]
[]
[]
["Pantstillelser mv. og garantier for foretak i samme konsern",null,null,null,{"$f":"+'Registrering av faste opplysn.'!B6","v":2023},{"$f":"+'Registrering av faste opplysn.'!B7","v":2022}]
[]
["A AS, pantstillelse",null,null,null,0,0]
[]
[]
["Note 7 Fordringer og gjeld"]
[]
[null,null,null,null,{"$f":"+'Registrering av faste opplysn.'!B6","v":2023},{"$f":"+'Registrering av faste opplysn.'!B7","v":2022}]
[]
["Fordringer med forfall senere enn ett år",null,null,null,0,0]
[]
["Langsiktig gjeld med forfall senere enn 5 år",null,null,null,0,0]
[]
[]
["Note 8 Investeringer i børsnoterte aksjer"]
[]
[null,null,"Anskaff. kost","Tidligere verdi-endring","Periodens verdi-endring","Balanseført verdi"]
[]
[null,null,0,0,0,0]
[null,null,0,0,0,0]
["Sum",null,{"$f":"SUM(C182:C183)","v":0},{"$f":"SUM(D182:D183)","v":0},{"$f":"SUM(E182:E183)","v":0},{"$f":"SUM(F182:F183)","v":0}]
[]
[]
["Note 9 Aksjekapital og aksjonærinformasjon"]
[]
["Aksjekapitalen på kr. XXX består av XXX aksjer à kr. XXX."]
[]
["Alt 1) NN (styrets leder) eier samtlige aksjer."]
["Alt 2)"]
[{"$f":"\"Oversikt over de største aksjonærene 31.12.\" & 'Registrering av faste opplysn.'!B6","v":"Oversikt over de største aksjonærene 31.12.2023"}]
[]
["Navn","Verv",null,null,"Antall aksjer","Eierandel"]
[]
[null,null,null,null,null,{"$f":"SUM(E197/E205)","v":{"$error":"#DIV/0!"}}]
[null,null,null,null,null,{"$f":"SUM(E198/E205)","v":{"$error":"#DIV/0!"}}]
[null,null,null,null,null,{"$f":"SUM(E199/E205)","v":{"$error":"#DIV/0!"}}]
[null,null,null,null,null,{"$f":"SUM(E200/E205)","v":{"$error":"#DIV/0!"}}]
[null,"Styrets leder",null,null,null,{"$f":"SUM(E201/E205)","v":{"$error":"#DIV/0!"}}]
[null,"Daglig leder",null,null,null,{"$f":"SUM(E202/E205)","v":{"$error":"#DIV/0!"}}]
["Sum",null,null,null,{"$f":"SUM(E197:E202)","v":0},{"$f":"SUM(F197:F202)","v":{"$error":"#DIV/0!"}}]
["Øvrige",null,null,null,null,{"$f":"SUM(E204/E205)","v":{"$error":"#DIV/0!"}}]
["Totalt ",null,null,null,{"$f":"SUM(E203+E204)","v":0},{"$f":"SUM(F203+F204)","v":{"$error":"#DIV/0!"}}]
[]
["Alt. 3: Hvis selskapet er datterselskap i konsern som utarbeider konsernregnskap"]
["Alle aksjer er eid av morselskapet xxx AS, med forretningsadresse xxxxxxxxxxxx."]
["Der kan konsernregnskapet som inkluderer Små foretak AS fås utlevert."]
[]
[]
["Note 10 Egenkapital"]
[]
[null,null,"Aksje-kapital","Overkurs","Annen innskutt egenkapital","Annen egenkapital","Sum"]
[]
[{"$f":"\"Egenkapital 01.01.\" & 'Registrering av faste opplysn.'!B6","v":"Egenkapital 01.01.2023"},null,0,0,0,0,{"$f":"SUM(C216:F216)","v":0}]
["Årets resultat",null,0,0,0,0,{"$f":"SUM(C217:F217)","v":0}]
["Avsatt utbytte",null,0,0,0,0,{"$f":"SUM(C218:F218)","v":0}]
[{"$f":"\"Egenkapital 31.12.\" & 'Registrering av faste opplysn.'!B6","v":"Egenkapital 31.12.2023"},null,{"$f":"SUM(C216:C218)","v":0},{"$f":"SUM(D216:D218)","v":0},{"$f":"SUM(E216:E218)","v":0},{"$f":"SUM(F216:F218)","v":0},{"$f":"SUM(G216:G218)","v":0}]